[Event "Early-Titled-Tuesday-Blitz-July-09-2024"]
[Site "Chess.com"]
[Date "2024.07.09"]
[Round "10"]
[White "esrosenberg"]
[Black "Cherepov_Alexej"]
[Result "0-1"]
[WhiteElo "2318"]
[BlackElo "2435"]
[TimeControl "180+1"]
[EndTime "9:57:31 PDT"]
[Termination "Cherepov_Alexej won by checkmate"]

1. e4 {[%clk 0:03:00.9]} 1... Nf6 {[%clk 0:02:59.3]} 2. e5 {[%clk 0:02:59.8]}
2... Nd5 {[%clk 0:02:59.4]} 3. d4 {[%clk 0:03:00.3]} 3... d6 {[%clk 0:02:59.4]}
4. c4 {[%clk 0:02:59.9]} 4... Nb6 {[%clk 0:02:59.2]} 5. f4 {[%clk 0:03:00.5]}
5... dxe5 {[%clk 0:02:59.5]} 6. fxe5 {[%clk 0:03:01]} 6... Nc6 {[%clk
0:03:00.1]} 7. Nf3 {[%clk 0:02:52.3]} 7... Bg4 {[%clk 0:02:58.2]} 8. Be3 {[%clk
0:02:52.2]} 8... e6 {[%clk 0:02:57.6]} 9. Nbd2 {[%clk 0:02:31.6]} 9... Be7
{[%clk 0:02:42.2]} 10. Be2 {[%clk 0:02:22.1]} 10... O-O {[%clk 0:02:40.2]} 11.
O-O {[%clk 0:02:22.5]} 11... f6 {[%clk 0:02:40.3]} 12. h3 {[%clk 0:01:43.7]}
12... Bh5 {[%clk 0:02:38.3]} 13. g4 {[%clk 0:01:33.3]} 13... Bg6 {[%clk
0:02:34.7]} 14. a3 {[%clk 0:01:29.6]} 14... fxe5 {[%clk 0:02:28.7]} 15. dxe5
{[%clk 0:01:27.5]} 15... Bd3 {[%clk 0:02:18]} 16. Rc1 {[%clk 0:01:21.5]} 16...
a5 {[%clk 0:02:11.1]} 17. Rc3 {[%clk 0:01:16.7]} 17... Bg6 {[%clk 0:02:04.3]}
18. Nb3 {[%clk 0:00:58.1]} 18... Nd7 {[%clk 0:01:50.9]} 19. Bd3 {[%clk 0:00:45]}
19... Ndxe5 {[%clk 0:01:35]} 20. Nxe5 {[%clk 0:00:41.1]} 20... Nxe5 {[%clk
0:01:35.9]} 21. Bxg6 {[%clk 0:00:41.1]} 21... Nxg6 {[%clk 0:01:33.8]} 22. Rd3
{[%clk 0:00:39.1]} 22... Qe8 {[%clk 0:01:25]} 23. Rxf8+ {[%clk 0:00:37.7]} 23...
Qxf8 {[%clk 0:01:20.7]} 24. Bd4 {[%clk 0:00:35.8]} 24... a4 {[%clk 0:01:16.6]}
25. Nd2 {[%clk 0:00:33.8]} 25... Rd8 {[%clk 0:01:15.9]} 26. Ne4 {[%clk
0:00:28.9]} 26... Qf4 {[%clk 0:01:10.5]} 27. Qe2 {[%clk 0:00:23.4]} 27... Ne5
{[%clk 0:00:44.1]} 28. Bxe5 {[%clk 0:00:22.9]} 28... Qxe5 {[%clk 0:00:44.1]} 29.
Rxd8+ {[%clk 0:00:21.2]} 29... Bxd8 {[%clk 0:00:45]} 30. Nc3 {[%clk 0:00:16.1]}
30... Qxe2 {[%clk 0:00:24.1]} 31. Nxe2 {[%clk 0:00:17]} 31... Bf6 {[%clk
0:00:24.1]} 32. Nf4 {[%clk 0:00:15.1]} 32... Kf7 {[%clk 0:00:23.3]} 33. Nd3
{[%clk 0:00:14.7]} 33... Bd4+ {[%clk 0:00:22.3]} 34. Kg2 {[%clk 0:00:14.1]}
34... Ke7 {[%clk 0:00:22.1]} 35. Kf3 {[%clk 0:00:14.7]} 35... Kd6 {[%clk
0:00:22.3]} 36. Ke4 {[%clk 0:00:15.3]} 36... Bf6 {[%clk 0:00:19.6]} 37. c5+
{[%clk 0:00:13.9]} 37... Kc6 {[%clk 0:00:18.7]} 38. g5 {[%clk 0:00:06.5]} 38...
Bxg5 {[%clk 0:00:17.9]} 39. Ke5 {[%clk 0:00:07.2]} 39... Bf6+ {[%clk 0:00:17.2]}
40. Kxe6 {[%clk 0:00:07.5]} 40... Kb5 {[%clk 0:00:17.1]} 41. Kd5 {[%clk
0:00:07.3]} 41... c6+ {[%clk 0:00:16]} 42. Kd6 {[%clk 0:00:07.6]} 42... Kc4
{[%clk 0:00:16.3]} 43. Nf4 {[%clk 0:00:06.5]} 43... Bxb2 {[%clk 0:00:15.9]} 44.
Ne6 {[%clk 0:00:04.7]} 44... g6 {[%clk 0:00:14.2]} 45. Kc7 {[%clk 0:00:05.6]}
45... Bxa3 {[%clk 0:00:13.5]} 46. Kxb7 {[%clk 0:00:05.5]} 46... Bxc5 {[%clk
0:00:11.9]} 47. Kxc6 {[%clk 0:00:05.9]} 47... Be7 {[%clk 0:00:11.7]} 48. Nf4
{[%clk 0:00:04.9]} 48... a3 {[%clk 0:00:11.2]} 49. Ng2 {[%clk 0:00:05]} 49... a2
{[%clk 0:00:11.1]} 50. Ne3+ {[%clk 0:00:05.9]} 50... Kd3 {[%clk 0:00:11]} 51.
Nd5 {[%clk 0:00:05.4]} 51... Ba3 {[%clk 0:00:10.6]} 52. Nf6 {[%clk 0:00:04.4]}
52... h5 {[%clk 0:00:09.9]} 53. Nh7 {[%clk 0:00:05.3]} 53... a1=Q {[%clk
0:00:09.9]} 54. Nf8 {[%clk 0:00:06.1]} 54... Qc3+ {[%clk 0:00:09.8]} 55. Kb5
{[%clk 0:00:05.4]} 55... Bxf8 {[%clk 0:00:10.7]} 56. Ka4 {[%clk 0:00:06.1]}
56... Qb4# {[%clk 0:00:10.6]} 0-1

[Event "Early-Titled-Tuesday-Blitz-July-09-2024"]
[Site "Chess.com"]
[Date "2024.07.09"]
[Round "10"]
[White "xh4823"]
[Black "Andrey-Ivanov2011"]
[Result "0-1"]
[WhiteElo "2314"]
[BlackElo "2190"]
[TimeControl "180+1"]
[EndTime "9:57:31 PDT"]
[Termination "Andrey-Ivanov2011 won on time"]

1. d4 {[%clk 0:02:54.2]} 1... Nf6 {[%clk 0:02:59.8]} 2. c4 {[%clk 0:02:53.6]}
2... g6 {[%clk 0:03:00.1]} 3. Nc3 {[%clk 0:02:53.5]} 3... d5 {[%clk 0:03:00.3]}
4. cxd5 {[%clk 0:02:53.1]} 4... Nxd5 {[%clk 0:03:00.9]} 5. g3 {[%clk 0:02:53.8]}
5... Bg7 {[%clk 0:03:00.4]} 6. Bg2 {[%clk 0:02:53.7]} 6... Nxc3 {[%clk
0:03:00.7]} 7. bxc3 {[%clk 0:02:53.5]} 7... O-O {[%clk 0:03:01.4]} 8. e3 {[%clk
0:02:53.6]} 8... c5 {[%clk 0:03:01.4]} 9. Ne2 {[%clk 0:02:53.8]} 9... cxd4
{[%clk 0:03:01.3]} 10. cxd4 {[%clk 0:02:53.4]} 10... Nc6 {[%clk 0:03:01.2]} 11.
O-O {[%clk 0:02:53.3]} 11... Re8 {[%clk 0:02:59.1]} 12. f4 {[%clk 0:02:35.8]}
12... Bd7 {[%clk 0:02:53.9]} 13. Rb1 {[%clk 0:02:32.8]} 13... Qc7 {[%clk
0:02:52]} 14. Bd2 {[%clk 0:02:26.2]} 14... Rac8 {[%clk 0:02:49.2]} 15. Qb3
{[%clk 0:02:21.5]} 15... b6 {[%clk 0:02:48.1]} 16. Rfc1 {[%clk 0:02:20.8]} 16...
Qb8 {[%clk 0:02:46.6]} 17. Nc3 {[%clk 0:02:15.8]} 17... e6 {[%clk 0:02:28.2]}
18. Ne4 {[%clk 0:02:04.1]} 18... f5 {[%clk 0:02:20.7]} 19. Ng5 {[%clk
0:02:00.3]} 19... h6 {[%clk 0:02:17.3]} 20. d5 {[%clk 0:01:45.9]} 20... Nd4
{[%clk 0:02:10.2]} 21. exd4 {[%clk 0:01:32.1]} 21... hxg5 {[%clk 0:02:08.1]} 22.
fxg5 {[%clk 0:01:20.1]} 22... Bxd4+ {[%clk 0:02:03.9]} 23. Kh1 {[%clk
0:01:19.6]} 23... e5 {[%clk 0:01:57.7]} 24. Bb4 {[%clk 0:01:09.1]} 24... Kg7
{[%clk 0:01:50.1]} 25. Qa3 {[%clk 0:01:00]} 25... a5 {[%clk 0:01:46.3]} 26. Be7
{[%clk 0:00:59.6]} 26... Rxc1+ {[%clk 0:01:43.1]} 27. Rxc1 {[%clk 0:00:58.9]}
27... Bc5 {[%clk 0:01:05.1]} 28. Bf6+ {[%clk 0:00:43.3]} 28... Kf7 {[%clk
0:00:58.3]} 29. Qb3 {[%clk 0:00:41.3]} 29... Qd6 {[%clk 0:00:57.6]} 30. Qc4
{[%clk 0:00:36.1]} 30... Rc8 {[%clk 0:00:53.3]} 31. Qh4 {[%clk 0:00:35.4]} 31...
Rg8 {[%clk 0:00:38.5]} 32. Qh7+ {[%clk 0:00:25.9]} 32... Kf8 {[%clk 0:00:37.4]}
33. Re1 {[%clk 0:00:18.8]} 33... e4 {[%clk 0:00:35.3]} 34. h4 {[%clk 0:00:16.7]}
34... Qxg3 {[%clk 0:00:17.6]} 35. Rc1 {[%clk 0:00:16.7]} 35... Qd6 {[%clk
0:00:17.2]} 36. h5 {[%clk 0:00:13.8]} 36... gxh5 {[%clk 0:00:16.4]} 37. Qxh5
{[%clk 0:00:10.8]} 37... Bb5 {[%clk 0:00:05.7]} 38. Qh6+ {[%clk 0:00:08.6]}
38... Ke8 {[%clk 0:00:05.2]} 39. Qh7 {[%clk 0:00:08.7]} 39... Qf8 {[%clk
0:00:04.5]} 40. Bh3 {[%clk 0:00:05.4]} 40... Bd7 {[%clk 0:00:01.8]} 41. Bxf5
{[%clk 0:00:04.1]} 41... Bxf5 {[%clk 0:00:01.8]} 42. Qxf5 {[%clk 0:00:05]} 42...
Rh8+ {[%clk 0:00:01.5]} 43. Kg2 {[%clk 0:00:04.3]} 43... Qf7 {[%clk 0:00:02.2]}
44. Qe5+ {[%clk 0:00:04.1]} 44... Kd7 {[%clk 0:00:02.1]} 45. Bxh8 {[%clk
0:00:01.7]} 45... Qf3+ {[%clk 0:00:02.8]} 0-1

[Event "Early-Titled-Tuesday-Blitz-July-09-2024"]
[Site "Chess.com"]
[Date "2024.07.09"]
[Round "10"]
[White "SharathRk6"]
[Black "deribas12345"]
[Result "0-1"]
[WhiteElo "2462"]
[BlackElo "2634"]
[TimeControl "180+1"]
[EndTime "9:57:32 PDT"]
[Termination "deribas12345 won by checkmate"]

1. e4 {[%clk 0:03:00.9]} 1... e6 {[%clk 0:02:42]} 2. d4 {[%clk 0:02:58.9]} 2...
d5 {[%clk 0:02:41.8]} 3. e5 {[%clk 0:02:59.3]} 3... c5 {[%clk 0:02:41.7]} 4. c3
{[%clk 0:02:59.6]} 4... Qa5 {[%clk 0:02:42.3]} 5. Nf3 {[%clk 0:02:58.2]} 5...
cxd4 {[%clk 0:02:42.1]} 6. Nxd4 {[%clk 0:02:57.1]} 6... Nc6 {[%clk 0:02:41.3]}
7. Nxc6 {[%clk 0:02:56.4]} 7... bxc6 {[%clk 0:02:41.8]} 8. Bd3 {[%clk
0:02:56.2]} 8... Ba6 {[%clk 0:02:41.1]} 9. O-O {[%clk 0:02:55.5]} 9... Ne7
{[%clk 0:02:40.6]} 10. Be3 {[%clk 0:02:51.5]} 10... Bxd3 {[%clk 0:02:39]} 11.
Qxd3 {[%clk 0:02:51.3]} 11... c5 {[%clk 0:02:39.5]} 12. Nd2 {[%clk 0:02:45.1]}
12... Nc6 {[%clk 0:02:35.3]} 13. f4 {[%clk 0:02:44.3]} 13... Rb8 {[%clk
0:02:32.3]} 14. b3 {[%clk 0:02:26.5]} 14... Be7 {[%clk 0:02:22.5]} 15. c4 {[%clk
0:02:24.2]} 15... Nb4 {[%clk 0:02:02.1]} 16. Qb1 {[%clk 0:02:17.7]} 16... g6
{[%clk 0:01:28.5]} 17. Rc1 {[%clk 0:02:00.3]} 17... O-O {[%clk 0:01:17.8]} 18.
a3 {[%clk 0:01:59.1]} 18... Nc6 {[%clk 0:01:14.9]} 19. b4 {[%clk 0:01:59.4]}
19... cxb4 {[%clk 0:01:09.7]} 20. axb4 {[%clk 0:01:58.5]} 20... Qxb4 {[%clk
0:01:10]} 21. Qxb4 {[%clk 0:01:58]} 21... Nxb4 {[%clk 0:01:07]} 22. Rxa7 {[%clk
0:01:55.3]} 22... Rfe8 {[%clk 0:01:05.9]} 23. g3 {[%clk 0:01:23.7]} 23... d4
{[%clk 0:01:00]} 24. Bxd4 {[%clk 0:01:15]} 24... Nc6 {[%clk 0:00:58.3]} 25. Rd7
{[%clk 0:01:15.4]} 25... Nxd4 {[%clk 0:00:58.3]} 26. Rxd4 {[%clk 0:01:16.3]}
26... Bc5 {[%clk 0:00:58.1]} 27. Nf3 {[%clk 0:01:16.8]} 27... Rb3 {[%clk
0:00:51.5]} 28. Kg2 {[%clk 0:01:10.9]} 28... Rxf3 {[%clk 0:00:50.4]} 29. Kxf3
{[%clk 0:01:11.5]} 29... Bxd4 {[%clk 0:00:50.5]} 30. Ke4 {[%clk 0:01:12.1]}
30... Bc5 {[%clk 0:00:49.8]} 31. Ra1 {[%clk 0:01:11.7]} 31... Rc8 {[%clk
0:00:47.9]} 32. Ra6 {[%clk 0:01:10.5]} 32... h5 {[%clk 0:00:46.9]} 33. h3 {[%clk
0:01:09.8]} 33... Kg7 {[%clk 0:00:45.3]} 34. g4 {[%clk 0:01:10.1]} 34... h4
{[%clk 0:00:39.2]} 35. f5 {[%clk 0:01:09.3]} 35... gxf5+ {[%clk 0:00:37.3]} 36.
gxf5 {[%clk 0:01:07.8]} 36... exf5+ {[%clk 0:00:34.8]} 37. Kxf5 {[%clk
0:01:08.7]} 37... Bf2 {[%clk 0:00:28.4]} 38. Ra2 {[%clk 0:01:00]} 38... Bg3
{[%clk 0:00:27.4]} 39. Ra7 {[%clk 0:00:57.8]} 39... Rc5 {[%clk 0:00:18.8]} 40.
Re7 {[%clk 0:00:47.5]} 40... Kf8 {[%clk 0:00:18.4]} 41. Ra7 {[%clk 0:00:44.2]}
41... Bxe5 {[%clk 0:00:17.6]} 42. Kg4 {[%clk 0:00:45.1]} 42... Bg3 {[%clk
0:00:17.3]} 43. Ra4 {[%clk 0:00:43.9]} 43... Kg7 {[%clk 0:00:17.4]} 44. Kf3
{[%clk 0:00:44.1]} 44... Kg6 {[%clk 0:00:17.2]} 45. Kg2 {[%clk 0:00:44.7]} 45...
f5 {[%clk 0:00:16.7]} 46. Kh1 {[%clk 0:00:45]} 46... Re5 {[%clk 0:00:16]} 47.
Kg2 {[%clk 0:00:45.3]} 47... Re2+ {[%clk 0:00:16]} 48. Kh1 {[%clk 0:00:45.8]}
48... Rc2 {[%clk 0:00:15.6]} 49. Kg1 {[%clk 0:00:43.9]} 49... Kg5 {[%clk
0:00:15.6]} 50. c5 {[%clk 0:00:43.8]} 50... Bf2+ {[%clk 0:00:14.4]} 51. Kh1
{[%clk 0:00:43.6]} 51... Bxc5 {[%clk 0:00:14.5]} 52. Ra5 {[%clk 0:00:41.6]}
52... Bd6 {[%clk 0:00:14.4]} 53. Ra4 {[%clk 0:00:41.7]} 53... Bg3 {[%clk
0:00:14.2]} 54. Kg1 {[%clk 0:00:40.5]} 54... f4 {[%clk 0:00:12.7]} 55. Ra5+
{[%clk 0:00:40.2]} 55... Kf6 {[%clk 0:00:12.8]} 56. Ra6+ {[%clk 0:00:40.5]}
56... Ke5 {[%clk 0:00:13.3]} 57. Ra5+ {[%clk 0:00:40.8]} 57... Kd4 {[%clk
0:00:13.4]} 58. Ra4+ {[%clk 0:00:41.2]} 58... Ke3 {[%clk 0:00:12.5]} 59. Ra3+
{[%clk 0:00:41.7]} 59... Ke2 {[%clk 0:00:12.6]} 60. Ra1 {[%clk 0:00:38.9]} 60...
f3 {[%clk 0:00:11.4]} 61. Rf1 {[%clk 0:00:37.5]} 61... Ke3 {[%clk 0:00:09.8]}
62. Kh1 {[%clk 0:00:36.8]} 62... Rh2+ {[%clk 0:00:08.3]} 63. Kg1 {[%clk
0:00:37.4]} 63... f2+ {[%clk 0:00:07.8]} 64. Rxf2 {[%clk 0:00:37.8]} 64... Rxf2
{[%clk 0:00:07.9]} 65. Kh1 {[%clk 0:00:38.5]} 65... Kf3 {[%clk 0:00:08.1]} 66.
Kg1 {[%clk 0:00:38.8]} 66... Rd2 {[%clk 0:00:06.3]} 67. Kh1 {[%clk 0:00:39.7]}
67... Rd1# {[%clk 0:00:06.6]} 0-1

[Event "Early-Titled-Tuesday-Blitz-July-09-2024"]
[Site "Chess.com"]
[Date "2024.07.09"]
[Round "10"]
[White "Individoom"]
[Black "snowlord"]
[Result "0-1"]
[WhiteElo "2758"]
[BlackElo "2920"]
[TimeControl "180+1"]
[EndTime "9:57:33 PDT"]
[Termination "snowlord won by checkmate"]

1. d4 {[%clk 0:02:59.5]} 1... c6 {[%clk 0:03:00]} 2. Nf3 {[%clk 0:02:58.5]} 2...
Nf6 {[%clk 0:02:59.5]} 3. Bf4 {[%clk 0:02:58]} 3... Nh5 {[%clk 0:02:51.9]} 4.
Bd2 {[%clk 0:02:54.3]} 4... d5 {[%clk 0:02:49.6]} 5. c4 {[%clk 0:02:47.1]} 5...
dxc4 {[%clk 0:02:46.4]} 6. e3 {[%clk 0:02:38.6]} 6... b5 {[%clk 0:02:35]} 7. a4
{[%clk 0:02:38.1]} 7... Nf6 {[%clk 0:02:31.1]} 8. b3 {[%clk 0:02:36.4]} 8... e6
{[%clk 0:02:24]} 9. bxc4 {[%clk 0:02:21.4]} 9... b4 {[%clk 0:02:20]} 10. a5
{[%clk 0:02:13.6]} 10... c5 {[%clk 0:02:20.1]} 11. Bd3 {[%clk 0:02:01.7]} 11...
Be7 {[%clk 0:02:12.5]} 12. O-O {[%clk 0:02:01.3]} 12... O-O {[%clk 0:02:13.2]}
13. Bc1 {[%clk 0:02:01]} 13... Bb7 {[%clk 0:02:07.2]} 14. Nbd2 {[%clk
0:01:59.9]} 14... Na6 {[%clk 0:01:56.5]} 15. Bb2 {[%clk 0:01:58.3]} 15... Rc8
{[%clk 0:01:55]} 16. Qe2 {[%clk 0:01:56.6]} 16... Nb8 {[%clk 0:01:33.6]} 17.
Rfd1 {[%clk 0:01:53.4]} 17... Qc7 {[%clk 0:01:34.2]} 18. Nb3 {[%clk 0:01:51.4]}
18... Nbd7 {[%clk 0:01:28.8]} 19. a6 {[%clk 0:01:44.9]} 19... Ba8 {[%clk
0:01:29]} 20. e4 {[%clk 0:01:43.9]} 20... cxd4 {[%clk 0:01:27.4]} 21. Nfxd4
{[%clk 0:01:43.5]} 21... Qf4 {[%clk 0:01:10.5]} 22. g3 {[%clk 0:01:28.5]} 22...
Qh6 {[%clk 0:01:05.5]} 23. Nb5 {[%clk 0:01:07.9]} 23... Nc5 {[%clk 0:01:05.3]}
24. Nxc5 {[%clk 0:01:06.3]} 24... Bxc5 {[%clk 0:01:06.2]} 25. Bd4 {[%clk
0:01:03.1]} 25... Qg5 {[%clk 0:00:41.5]} 26. Bxc5 {[%clk 0:00:52.5]} 26... Qxc5
{[%clk 0:00:39.6]} 27. e5 {[%clk 0:00:47.3]} 27... Nd7 {[%clk 0:00:33.7]} 28.
Re1 {[%clk 0:00:46.6]} 28... Rfd8 {[%clk 0:00:29.8]} 29. Rad1 {[%clk 0:00:36.1]}
29... Qc6 {[%clk 0:00:24.2]} 30. Be4 {[%clk 0:00:35.7]} 30... Qxe4 {[%clk
0:00:24.5]} 31. Qxe4 {[%clk 0:00:35.3]} 31... Bxe4 {[%clk 0:00:25.4]} 32. Rxe4
{[%clk 0:00:35.2]} 32... Nc5 {[%clk 0:00:25.8]} 33. Ree1 {[%clk 0:00:23.2]}
33... Rxd1 {[%clk 0:00:23.1]} 34. Rxd1 {[%clk 0:00:23]} 34... Nxa6 {[%clk
0:00:23.8]} 35. Nxa7 {[%clk 0:00:22.7]} 35... Ra8 {[%clk 0:00:23]} 36. Nc6
{[%clk 0:00:17]} 36... g5 {[%clk 0:00:23.3]} 37. Rd7 {[%clk 0:00:10.8]} 37... b3
{[%clk 0:00:16.9]} 38. Rb7 {[%clk 0:00:10.7]} 38... Nc5 {[%clk 0:00:17.6]} 39.
Rb5 {[%clk 0:00:10.5]} 39... Kg7 {[%clk 0:00:16.9]} 40. Nd4 {[%clk 0:00:09.9]}
40... Nd3 {[%clk 0:00:13.7]} 41. Rxb3 {[%clk 0:00:09.2]} 41... Ra1+ {[%clk
0:00:11.9]} 42. Kg2 {[%clk 0:00:08.8]} 42... Nxe5 {[%clk 0:00:12.7]} 43. Rb7
{[%clk 0:00:06.6]} 43... Kf6 {[%clk 0:00:11.8]} 44. c5 {[%clk 0:00:06.7]} 44...
Rc1 {[%clk 0:00:12]} 45. Rc7 {[%clk 0:00:06.4]} 45... g4 {[%clk 0:00:10.5]} 46.
c6 {[%clk 0:00:05.7]} 46... h5 {[%clk 0:00:09.3]} 47. Rb7 {[%clk 0:00:04.8]}
47... Nd3 {[%clk 0:00:05.7]} 48. h3 {[%clk 0:00:02.5]} 48... e5 {[%clk
0:00:06.3]} 49. Nb5 {[%clk 0:00:01.3]} 49... Ne1+ {[%clk 0:00:06.6]} 50. Kh2
{[%clk 0:00:01.4]} 50... Nf3+ {[%clk 0:00:07.5]} 51. Kg2 {[%clk 0:00:01.7]}
51... Rg1# {[%clk 0:00:08.4]} 0-1

[Event "Early-Titled-Tuesday-Blitz-July-09-2024"]
[Site "Chess.com"]
[Date "2024.07.09"]
[Round "10"]
[White "NikitaShnadrygin"]
[Black "bilosuvenosu06"]
[Result "1-0"]
[WhiteElo "2730"]
[BlackElo "2556"]
[TimeControl "180+1"]
[EndTime "9:57:39 PDT"]
[Termination "NikitaShnadrygin won by resignation"]

1. e4 {[%clk 0:03:00.9]} 1... c5 {[%clk 0:02:59.7]} 2. Nf3 {[%clk 0:02:59.4]}
2... Nc6 {[%clk 0:02:58.6]} 3. d4 {[%clk 0:02:59.3]} 3... cxd4 {[%clk
0:02:59.5]} 4. Nxd4 {[%clk 0:02:57.1]} 4... g6 {[%clk 0:02:59.6]} 5. Nc3 {[%clk
0:02:56.6]} 5... Bg7 {[%clk 0:02:59.6]} 6. Be3 {[%clk 0:02:57]} 6... Nf6 {[%clk
0:02:58.4]} 7. Nxc6 {[%clk 0:02:55.5]} 7... bxc6 {[%clk 0:02:52.6]} 8. e5 {[%clk
0:02:55.3]} 8... Ng8 {[%clk 0:02:41.9]} 9. f4 {[%clk 0:02:53.9]} 9... d6 {[%clk
0:02:31.1]} 10. Bc4 {[%clk 0:02:13.9]} 10... d5 {[%clk 0:02:25.9]} 11. Bb3
{[%clk 0:02:11.1]} 11... f6 {[%clk 0:02:25.9]} 12. Bd4 {[%clk 0:01:30.6]} 12...
fxe5 {[%clk 0:02:25.2]} 13. fxe5 {[%clk 0:01:18.2]} 13... Nh6 {[%clk 0:02:23.1]}
14. O-O {[%clk 0:01:13.9]} 14... Nf5 {[%clk 0:02:21.2]} 15. Kh1 {[%clk
0:00:43.5]} 15... O-O {[%clk 0:02:16.7]} 16. Bc5 {[%clk 0:00:36.9]} 16... Qa5
{[%clk 0:01:58.5]} 17. Nxd5 {[%clk 0:00:19.7]} 17... Qxc5 {[%clk 0:01:45.7]} 18.
Nc7+ {[%clk 0:00:11.4]} 18... Kh8 {[%clk 0:01:45.5]} 19. Nxa8 {[%clk 0:00:12.1]}
19... Ba6 {[%clk 0:01:43.9]} 20. Rxf5 {[%clk 0:00:09.5]} 20... Rxf5 {[%clk
0:01:41.3]} 21. Nc7 {[%clk 0:00:09.6]} 21... Qxe5 {[%clk 0:01:37.3]} 22. Nxa6
{[%clk 0:00:08.5]} 22... Qxb2 {[%clk 0:01:33.4]} 23. Rb1 {[%clk 0:00:07.2]}
23... Qc3 {[%clk 0:01:28.6]} 24. Nc7 {[%clk 0:00:07.3]} 24... Qe5 {[%clk
0:01:27]} 25. Ne6 {[%clk 0:00:07.4]} 25... Qd6 {[%clk 0:01:16]} 26. Qxd6 {[%clk
0:00:06.8]} 26... exd6 {[%clk 0:01:16.9]} 27. Nxg7 {[%clk 0:00:07.5]} 27... Kxg7
{[%clk 0:01:16.4]} 28. Kg1 {[%clk 0:00:08.2]} 28... d5 {[%clk 0:01:12.8]} 29.
Rf1 {[%clk 0:00:07.9]} 29... Re5 {[%clk 0:01:12.5]} 30. Rd1 {[%clk 0:00:04.8]}
30... a5 {[%clk 0:01:09.1]} 31. c4 {[%clk 0:00:05]} 31... dxc4 {[%clk
0:01:06.4]} 32. Bxc4 {[%clk 0:00:05.9]} 32... Rc5 {[%clk 0:01:06.5]} 33. Bb3
{[%clk 0:00:06.3]} 33... Re5 {[%clk 0:01:02]} 34. Rd6 {[%clk 0:00:04]} 34... Rc5
{[%clk 0:00:56.8]} 35. Kf2 {[%clk 0:00:03.4]} 35... Rc3 {[%clk 0:00:57.2]} 36.
Rd4 {[%clk 0:00:02.5]} 36... Rc1 {[%clk 0:00:49]} 37. Rc4 {[%clk 0:00:02.9]}
37... Rh1 {[%clk 0:00:49.7]} 38. Rxc6 {[%clk 0:00:02.2]} 38... Rxh2 {[%clk
0:00:50]} 39. Ra6 {[%clk 0:00:03.1]} 39... Rh5 {[%clk 0:00:49.3]} 40. g4 {[%clk
0:00:02.2]} 40... Rc5 {[%clk 0:00:49.9]} 41. Kf3 {[%clk 0:00:02.4]} 41... Kh6
{[%clk 0:00:50]} 42. Kf4 {[%clk 0:00:02.8]} 42... Rb5 {[%clk 0:00:48.7]} 43. Ra7
{[%clk 0:00:01.7]} 43... Rb4+ {[%clk 0:00:49.1]} 44. Kf3 {[%clk 0:00:02.3]}
44... Rb5 {[%clk 0:00:46.2]} 45. Kg3 {[%clk 0:00:02.8]} 45... Rc5 {[%clk
0:00:45.9]} 46. Kh4 {[%clk 0:00:02.1]} 46... Re5 {[%clk 0:00:38.8]} 47. Kg3
{[%clk 0:00:02]} 47... Rc5 {[%clk 0:00:37.5]} 48. Bg8 {[%clk 0:00:02.2]} 48...
Kg5 {[%clk 0:00:35.2]} 49. Bb3 {[%clk 0:00:01.6]} 49... Rc3+ {[%clk 0:00:35.3]}
50. Kf2 {[%clk 0:00:02]} 50... Kxg4 {[%clk 0:00:36]} 51. Rxh7 {[%clk 0:00:01.8]}
51... Rd3 {[%clk 0:00:31.5]} 52. Rg7 {[%clk 0:00:02.1]} 52... a4 {[%clk
0:00:31]} 53. Rxg6+ {[%clk 0:00:01.7]} 53... Kf5 {[%clk 0:00:31.1]} 54. Bc2
{[%clk 0:00:02.3]} 54... Kxg6 {[%clk 0:00:30.5]} 55. Bxd3+ {[%clk 0:00:02.8]}
55... Kf6 {[%clk 0:00:30.5]} 56. Ke3 {[%clk 0:00:03.2]} 56... Ke5 {[%clk
0:00:31.2]} 57. Kd2 {[%clk 0:00:03.9]} 57... Kd4 {[%clk 0:00:31.3]} 58. Be2
{[%clk 0:00:04.8]} 58... a3 {[%clk 0:00:31.3]} 59. Kc2 {[%clk 0:00:05.3]} 59...
Ke3 {[%clk 0:00:31.8]} 60. Ba6 {[%clk 0:00:05.5]} 60... Kd4 {[%clk 0:00:32.7]}
61. Kb3 {[%clk 0:00:06.2]} 61... Kc5 {[%clk 0:00:33.3]} 62. Kxa3 {[%clk
0:00:07.1]} 62... Kb6 {[%clk 0:00:34.2]} 63. Bf1 {[%clk 0:00:07.7]} 63... Kc5
{[%clk 0:00:35.1]} 64. Kb3 {[%clk 0:00:08.1]} 64... Kb6 {[%clk 0:00:36]} 65. a4
{[%clk 0:00:09]} 65... Ka5 {[%clk 0:00:36.4]} 66. Ka3 {[%clk 0:00:09.7]} 66...
Kb6 {[%clk 0:00:37.3]} 67. Kb4 {[%clk 0:00:10.6]} 67... Ka7 {[%clk 0:00:37.3]}
68. a5 {[%clk 0:00:11.5]} 68... Kb7 {[%clk 0:00:37.3]} 69. Kb5 {[%clk
0:00:12.1]} 69... Ka7 {[%clk 0:00:38.2]} 70. a6 {[%clk 0:00:12.6]} 70... Kb8
{[%clk 0:00:38.9]} 71. Kb6 {[%clk 0:00:13.1]} 71... Ka8 {[%clk 0:00:39]} 72.
Bg2+ {[%clk 0:00:13.5]} 72... Kb8 {[%clk 0:00:39.6]} 73. a7+ {[%clk 0:00:14.2]}
73... Kc8 {[%clk 0:00:40.5]} 74. a8=Q+ {[%clk 0:00:14.9]} 74... Kd7 {[%clk
0:00:41.4]} 75. Qc6+ {[%clk 0:00:15.6]} 1-0